fUST/lending_fUST_20240127
["ID","MTS","AMOUNT","RATE_DAILY","PERIOD"]
[312817109,1706295038191,-5014.19,0.00035606,3]
[312817111,1706295038200,-2998.586342,0.00035616,120]
[312817113,1706295038209,-2377.66184965,0.00035841,2]
[312817115,1706295038218,-192.9375,0.00035841,2]
[312817117,1706295038228,-302.08458368,0.0003615,4]
[312817119,1706295038237,-181.39491,0.000365,8]
[312817121,1706295038246,-604.16916737,0.00036757,7]
[312817123,1706295038255,-160.903846,0.00036986,2]
[312817125,1706295038265,-173.42368059,0.0003723,2]
[312817127,1706295038274,-2000.0,0.000373,18]
[312817129,1706295038283,-2000.0,0.000373,18]
[312817131,1706295038292,-2000.0,0.0003731,18]
[312817133,1706295038301,-2000.0,0.0003731,18]
[312817135,1706295038310,-2000.0,0.0003732,19]
[312817137,1706295038319,-2000.0,0.0003732,19]
[312817139,1706295038328,-2000.0,0.0003733,19]
[312817141,1706295038337,-2000.0,0.0003733,19]
[312817143,1706295038345,-2000.0,0.0003734,19]
[312817145,1706295038354,-2000.0,0.0003734,19]
[312817147,1706295038363,-2000.0,0.0003735,19]
[312817149,1706295038372,-2000.0,0.0003735,19]
[312817151,1706295038382,-2000.0,0.0003736,19]
[312817153,1706295038392,-2000.0,0.0003736,19]
[312817155,1706295038401,-2000.0,0.0003737,19]
[312817167,1706295038506,-2000.0,0.0003737,19]
[312817169,1706295038515,-167.04069139,0.00037375,4]
[312817171,1706295038525,-2000.0,0.0003738,19]
[312817173,1706295038534,-2000.0,0.0003738,19]
[312817174,1706295038543,-2000.0,0.0003739,19]
[312817177,1706295038553,-2000.0,0.0003739,19]
[312817178,1706295038562,-2000.0,0.000374,19]
[312817180,1706295038571,-2000.0,0.000374,19]
[312817182,1706295038580,-2000.0,0.0003741,19]
[312817184,1706295038589,-2000.0,0.0003741,19]
[312817186,1706295038599,-2000.0,0.0003742,19]
[312817188,1706295038608,-2000.0,0.0003742,19]
[312817190,1706295038617,-498.54555384,0.00037425,5]
[312817192,1706295038626,-2000.0,0.0003743,19]
[312817194,1706295038636,-2000.0,0.0003743,19]
[312817196,1706295038646,-2000.0,0.0003744,19]
[312817198,1706295038654,-2000.0,0.0003744,19]
[312817200,1706295038664,-2000.0,0.0003745,19]
[312817202,1706295038673,-2000.0,0.0003745,19]
[312817204,1706295038682,-2000.0,0.0003746,19]
[312817206,1706295038691,-2000.0,0.0003746,19]
[312817208,1706295038700,-2000.0,0.0003747,19]
[312817210,1706295038709,-3472.268687,0.0003747,19]
[312817212,1706295038718,-2000.0,0.0003748,19]
[312817214,1706295038727,-2000.0,0.0003749,19]
[312817216,1706295038736,-155.91130008,0.00037491,4]
[312817218,1706295038745,-660.34126829,0.00037491,7]
[312817220,1706295038754,-2000.0,0.000375,19]
[312817222,1706295038762,-2000.0,0.0003751,19]
[312817224,1706295038771,-2000.0,0.0003752,19]
[312817225,1706295038781,-2000.0,0.0003753,19]
[312817228,1706295038791,-2930.42614,0.0003754,19]
[312817230,1706295038800,-1208.33833473,0.00037688,30]
[312817232,1706295038810,-391.0,0.00037732,15]
[312817234,1706295038819,-160.29837334,0.00038,45]
[312817236,1706295038828,-50443.58264967,0.00038256,3]
[312817238,1706295038836,-173.42368057,0.00038313,2]
[312817239,1706295038846,-67860.52195109,0.00038354,5]
[312817241,1706295038855,-50000.0,0.00038415,3]
[312817243,1706295038864,-155.0,0.00038497,2]
[312817245,1706295038873,-300.0,0.000385,20]
[312817246,1706295038882,-2142.39328841,0.000385,4]
[312817248,1706295038894,-50000.0,0.00038563,5]
[312817250,1706295038903,-25928.21976373,0.00038563,4]
[312817253,1706295038912,-10735.69864074,0.00038563,4]
[312817255,1706295038921,-210.96440546,0.00038574,3]
[312817257,1706295038929,-50000.0,0.00038574,3]
[312817259,1706295038939,-155.04961588,0.00038576,7]
[312817261,1706295038948,-171.45774358,0.00039,4]
[312817262,1706295038957,-158.74528164,0.00039395,4]
[312817264,1706295038966,-2014.96552979,0.00039395,4]
[312817266,1706295038975,-4044.72988943,0.00039395,2]
[312817269,1706295038985,-585.10004292,0.00039396,15]
[312817271,1706295038994,-500.0,0.00039396,15]
[312817273,1706295039003,-500.0,0.00039396,15]
[312817275,1706295039012,-498.83167863,0.00039396,15]
[312817277,1706295039022,-500.0,0.00039396,15]
[312817279,1706295039031,-202.7,0.00039396,15]
[312817281,1706295039042,-251.18451346,0.00039396,15]
[312817283,1706295039060,-248.81548654,0.00039396,15]
[312817285,1706295039069,-500.0,0.00039396,15]
[312817287,1706295039079,-500.0,0.00039396,15]
[312817289,1706295039088,-500.0,0.00039396,15]
[312817291,1706295039098,-500.0,0.00039396,15]
[312817293,1706295039107,-500.0,0.00039396,15]
[312817295,1706295039117,-500.0,0.00039396,15]
[312817297,1706295039127,-500.0,0.00039396,15]
[312817299,1706295039137,-500.0,0.00039396,15]
[312817301,1706295039145,-500.0,0.00039396,15]
[312817303,1706295039155,-500.0,0.00039396,15]
[312817305,1706295039164,-500.0,0.00039396,15]
[312817307,1706295039173,-500.0,0.00039396,15]
[312817309,1706295039182,-500.0,0.00039396,15]
[312817311,1706295039191,-500.0,0.00039396,15]
[312817313,1706295039200,-500.0,0.00039396,15]
[312817315,1706295039209,-254.81467664,0.00039396,15]
[312817317,1706295039219,-500.0,0.00039396,15]
[312817319,1706295039228,-500.0,0.00039396,15]
[312817321,1706295039238,-500.0,0.00039396,15]
[312817323,1706295039247,-500.0,0.00039396,15]
[312817325,1706295039257,-199.2193597,0.00039396,15]
[312817620,1706295047151,-3482.08,0.00039387,3]
[312817621,1706295047161,-505.4302027,0.00039395,4]
[312817622,1706295047170,-274.92421469,0.00039395,4]
[312817623,1706295047179,-300.7806403,0.00039396,15]
[312817624,1706295047188,-440.88668185,0.00039396,15]
[312817625,1706295047198,-131.26927327,0.00039396,15]
[312817646,1706295259253,154.98450155,0.000176,2]
[312817660,1706295306169,938.28404821,0.000176,2]
[312817663,1706295315107,23906.73145024,0.000176,2]
[312817664,1706295315134,83611.73459006,0.000176,2]
[312817665,1706295315157,176984.99739038,0.000176,2]
[312817666,1706295320051,938.28404821,0.000176,2]
[312817667,1706295320201,155.04496304,0.00022,2]
[312817668,1706295329963,191.39107083,0.000176,2]
[312817669,1706295331108,284503.46343068,0.000176,2]
[312817670,1706295336189,309.53691947,0.00022,2]
[312817676,1706295338056,937.93292762,0.000176,2]
[312817677,1706295353059,284503.46343068,0.000176,2]
[312817687,1706295381070,941.54312552,0.000176,2]
[312817688,1706295381097,2000.0,0.000176,2]
[312817689,1706295381118,281561.92030516,0.000176,2]
[312817691,1706295399068,284503.46343068,0.000176,2]
[312817701,1706295419086,143568.48114447,0.000176,2]
[312817754,1706295562401,1855.23942684,0.000176,2]
[312817755,1706295569515,548.10984714,0.000176,2]
[312817756,1706295575208,620.37329655,0.000176,2]
[312817757,1706295576779,684.06765609,0.000176,2]
[312817758,1706295583300,206.2371887,0.000176,2]
[312817759,1706295584116,400.52132555,0.000176,2]
[312817760,1706295595452,157.08029083,0.000176,2]
[312817761,1706295597935,343.19914178,0.000176,2]
[312817762,1706295598869,537.44070193,0.000176,2]
[312817763,1706295602124,214.48262922,0.000176,2]
[312817764,1706295606766,290.14513525,0.000176,2]
[312817765,1706295608754,473.43459955,0.000176,5]
[312817766,1706295613433,1114.65598908,0.000176,2]
[312817767,1706295614260,1109.98253014,0.000176,2]
[312817768,1706295620918,156.86488031,0.0002,2]
[312817781,1706295741775,498.7732517,0.0002496,5]
[312817782,1706295757984,501.49465712,0.0002496,5]
[312817786,1706295771792,7529.38,0.00024958,3]
[312817788,1706295783712,6274.49,0.00024958,3]
[312817790,1706295789299,462.99244276,0.00024864,20]
[312817792,1706295794326,5228.74,0.00024958,3]
[312817796,1706295806442,4357.28,0.00024958,3]
[312817797,1706295811288,603.26526389,0.00024966,20]
[312817801,1706295831089,136.40749163,0.00024898,3]
[312817820,1706295949425,151.0362487,0.00028719,120]
[312817831,1706296033994,-213.55190572,0.00023471,2]
[312817832,1706296034022,-33.44809428,0.00023472,2]
[312817848,1706296096482,155.03875969,0.00021125,2]
[312817849,1706296103657,-175.31396286,0.00023464,2]
[312817850,1706296103678,-595.45090393,0.00023464,2]
[312817851,1706296103699,-244.15508901,0.00023464,2]
[312817852,1706296103719,-155.03875969,0.00023465,2]
[312817853,1706296103740,-1294.44989575,0.00023466,2]
[312817854,1706296103761,-629.53268824,0.00023467,2]
[312817855,1706296103795,-470.95501386,0.00023467,2]
[312817856,1706296103815,-2075.34158496,0.00023467,2]
[312817857,1706296103836,-2104.85059581,0.00023467,2]
[312817858,1706296103856,-295.0754832,0.00023468,2]
[312817859,1706296103878,-155.03875969,0.00023469,2]
[312817860,1706296103900,-426.28921801,0.00023469,2]
[312817861,1706296103921,-20884.97373293,0.00023469,2]
[312817862,1706296103942,-9076.53431206,0.00023469,2]
[312817865,1706296116497,155.03875969,0.00021125,2]
[312817866,1706296136510,155.03875969,0.00019013,2]
[312817867,1706296137939,155.03875969,0.00021125,2]
[312817868,1706296142381,684.62380165,0.00021125,2]
[312817869,1706296142691,233.5305887,0.00021125,2]
[312817870,1706296143312,1110.30133816,0.00021125,2]
[312817871,1706296144950,155.03875969,0.00021125,2]
[312817872,1706296147104,3220.16160157,0.00021125,2]
[312817874,1706296154517,684.62380165,0.00021125,2]
[312817875,1706296157949,155.1806804,0.00021125,2]
[312817876,1706296158526,155.03875969,0.00019013,2]
[312817877,1706296160682,335.18860123,0.00021125,2]
[312817878,1706296160954,155.03875969,0.00021125,2]
[312817879,1706296163306,1110.30133816,0.00021125,2]
[312817881,1706296165107,3220.16160157,0.00021125,2]
[312817882,1706296174405,684.62380165,0.00021125,2]
[312817883,1706296176521,155.03875969,0.00019013,2]
[312817884,1706296182963,172.58709297,0.00021125,2]
[312817885,1706296183110,3220.16160157,0.00021125,2]
[312817886,1706296185324,518.61014688,0.00021125,2]
[312817887,1706296194518,261.77868735,0.00017112,2]
[312817888,1706296196392,684.62380165,0.00019013,2]
[312817889,1706296205111,3091.14303356,0.00019013,2]
[312817890,1706296220400,684.62380165,0.00019013,2]
[312817972,1706296232067,-2104.75,0.00023091,2]
[312817975,1706296232078,-2443.90740241,0.00023091,2]
[312817986,1706296232132,-20351.34259759,0.00023091,2]
[312817989,1706296232141,-9945.36507918,0.00023455,2]
[312817992,1706296232150,-10549.91964157,0.00023455,2]
[312817994,1706296232159,-3747.87536289,0.00023456,2]
[312817996,1706296232168,-1416.35950919,0.00023457,2]
[312817999,1706296232178,-9573.53411033,0.00023458,2]
[312818002,1706296232189,-280.366271,0.00023458,2]
[312818004,1706296232202,-2955.52317059,0.00023458,2]
[312818104,1706296238162,-8102.38726836,0.00023458,2]
[312818106,1706296238171,-155.03875969,0.00023463,2]
[312818108,1706296238181,-470.95501386,0.00023469,2]
[312818110,1706296238190,-166.666666,0.00023473,2]
[312818112,1706296238199,-799.859225,0.00023637,2]
[312818114,1706296238208,-166.666666,0.00024112,2]
[312818115,1706296238217,-166.666666,0.00024752,2]
[312818117,1706296238226,-215.05616365,0.00024841,2]
[312818118,1706296238236,-4489.58193046,0.00024844,2]
[312818119,1706296238245,-11410.96423356,0.00024863,2]
[312818121,1706296238254,-335.5636504,0.00024911,2]
[312818122,1706296238264,-1902.94,0.00024956,3]
[312818124,1706296238273,-3291.18,0.00024957,3]
[312818126,1706296238283,-2075.34158496,0.00024964,2]
[312818128,1706296238293,-1590.36182158,0.00024966,2]
[312818130,1706296238302,-294.61812691,0.00024966,2]
[312818132,1706296238311,-302.05539565,0.00024966,2]
[312818134,1706296238321,-174.75819077,0.00024966,2]
[312818136,1706296238330,-1292.21286771,0.00024966,2]
[312818138,1706296238339,-386.99972598,0.00024966,2]
[312818140,1706296238349,-425.92233863,0.00024966,2]
[312818142,1706296238358,-2167.12765866,0.00024966,2]
[312818143,1706296238368,-594.74003577,0.00024966,2]
[312818145,1706296238377,-262.4952811,0.00024966,2]
[312818147,1706296238386,-426.27751498,0.00024966,2]
[312818149,1706296238396,-19712.13660076,0.00024966,2]
[312818151,1706296238405,-156.12493108,0.00024966,2]
[312818153,1706296238414,-540.62353099,0.00024967,2]
[312818154,1706296238423,-21004.91167475,0.00024967,2]
[312818156,1706296238432,-4726.99215817,0.00025,2]
[312818158,1706296238442,-166.666666,0.00025392,2]
[312818160,1706296238451,-200.0,0.00025814,7]
[312818162,1706296238461,-166.666666,0.00026032,2]
[312818164,1706296238470,-621.60313675,0.000264,2]
[312818165,1706296238480,-166.666666,0.00026672,2]
[312818166,1706296238489,-290.6211574,0.00027,2]
[312818167,1706296238498,-173.42368059,0.00027297,2]
[312818168,1706296238507,-620.08015684,0.0002772,2]
[312818169,1706296238515,-280.0,0.00028396,15]
[312818170,1706296238524,-170.98714659,0.0002849,2]
[312818171,1706296238533,-173.42368057,0.00028599,2]
[312818172,1706296238542,-151.7319832,0.00028662,2]
[312818173,1706296238551,-3194.47420237,0.00028719,2]
[312818174,1706296238560,-764.62995522,0.00028719,2]
[312818175,1706296238569,-409.14905199,0.000288,2]
[312818176,1706296238577,-409.14905199,0.000288,2]
[312818177,1706296238586,-409.14905199,0.000288,2]
[312818178,1706296238595,-409.14905199,0.000288,2]
[312818179,1706296238603,-409.14905199,0.000288,2]
[312818180,1706296238612,-409.14905199,0.000288,2]
[312818181,1706296238621,-409.14905199,0.000288,2]
[312818182,1706296238630,-409.14905199,0.000288,2]
[312818183,1706296238639,-409.14905199,0.000288,2]
[312818184,1706296238647,-409.14905,0.000288,2]
[312818185,1706296238656,-155.04496304,0.00029,2]
[312818186,1706296238665,-1932.98612217,0.00029,2]
[312818187,1706296238674,-155.0,0.00029,2]
[312818188,1706296238683,-620.00400784,0.00029106,2]
[312818189,1706296238692,-151.0362487,0.00029305,30]
[312818190,1706296238701,-2844.20023866,0.000295,30]
[312818191,1706296238710,-173.42368057,0.000299,2]
[312818192,1706296238719,-151.0362487,0.00029903,7]
[312818193,1706296238728,-2130.40626994,0.00029996,2]
[312818194,1706296238738,-309.9690031,0.00029998,2]
[312818195,1706296238749,-301.77611122,0.00029998,2]
[312818196,1706296238759,-178.47798681,0.00029998,2]
[312818197,1706296238769,-265.62893256,0.00029998,2]
[312818198,1706296238778,-155.71935238,0.00029998,2]
[312818199,1706296238788,-295.29373989,0.00029998,2]
[312818200,1706296238798,-200.0,0.00029998,2]
[312818201,1706296238807,-210.02000714,0.00029998,2]
[312818202,1706296238816,-309.88083369,0.00029998,2]
[312818203,1706296238827,-155.14723407,0.00029998,2]
[312818204,1706296238836,-683.59100991,0.00029998,2]
[312818205,1706296238845,-166.73340823,0.00029998,2]
[312818206,1706296238855,-155.61962253,0.00029998,2]
[312818207,1706296238864,-159.91483238,0.00029998,2]
[312818208,1706296238874,-155.08779782,0.00029998,2]
[312818209,1706296238885,-157.1119955,0.00029998,2]
[312818210,1706296238894,-4149.46727141,0.00029998,2]
[312818211,1706296238908,-155.10768829,0.00029998,2]
[312818212,1706296238919,-7384.14849766,0.00029998,2]
[312818213,1706296238928,-561.94551525,0.00029999,2]
[312818214,1706296238938,-210.96440546,0.0003,3]
[312818215,1706296238949,-195.42586369,0.0003,2]
[312818216,1706296238958,-156.22650473,0.0003,4]
[312818217,1706296238968,-154.90705577,0.0003,2]
[312818218,1706296238978,-419569.60248412,0.0003,30]
[312818219,1706296238988,-156.70873528,0.0003,10]
[312818220,1706296238997,-2373.20128333,0.0003,2]
[312818221,1706296239007,-139304.51624747,0.0003,4]
[312818222,1706296239016,-155.04496304,0.0003,4]
[312818223,1706296239026,-688.95190791,0.0003,4]
[312818224,1706296239035,-153.0,0.00030137,2]
[312818225,1706296239044,-153.0,0.00030137,2]
[312818226,1706296239054,-157.3764171,0.00030137,2]
[312818227,1706296239063,-153.0,0.00030137,2]
[312818228,1706296239072,-398.6234152,0.00030137,2]
[312818229,1706296239082,-164.743919,0.00030137,2]
[312818230,1706296239091,-158.280104,0.00030137,2]
[312818231,1706296239100,-155.0,0.0003037,2]
[312818232,1706296239109,-151.0362487,0.00030514,4]
[312818233,1706296239119,-620.00020039,0.00030561,2]
[312818234,1706296239129,-161.86475749,0.00031,4]
[312818235,1706296239138,-151.0362487,0.00031136,2]
[312818236,1706296239147,-391.0,0.00031235,15]
[312818237,1706296239156,-164.743919,0.00031279,2]
[312818238,1706296239165,-155.0,0.0003174,2]
[312818239,1706296239175,-500.0,0.00031999,7]
[312818240,1706296239185,-500.0,0.00031999,7]
[312818241,1706296239195,-498.83167863,0.00031999,7]
[312818242,1706296239205,-585.10004292,0.00031999,7]
[312818243,1706296239215,-202.7,0.00031999,7]
[312818244,1706296239226,-500.0,0.00031999,7]
[312818245,1706296239236,-500.0,0.00031999,7]
[312818246,1706296239245,-500.0,0.00031999,7]
[312818247,1706296239254,-544.08866818,0.00031999,7]
[312818248,1706296239342,-500.0,0.00031999,7]
[312818249,1706296239353,-500.0,0.00031999,7]
[312818250,1706296239363,-500.0,0.00031999,7]
[312818251,1706296239372,-500.0,0.00031999,7]
[312818252,1706296239381,-500.0,0.00031999,7]
[312818253,1706296239391,-500.0,0.00031999,7]
[312818254,1706296239400,-500.0,0.00031999,7]
[312818255,1706296239409,-500.0,0.00031999,7]
[312818256,1706296239418,-500.0,0.00031999,7]
[312818257,1706296239427,-500.0,0.00031999,7]
[312818258,1706296239436,-500.0,0.00031999,7]
[312818259,1706296239445,-500.0,0.00031999,7]
[312818260,1706296239454,-500.0,0.00031999,7]
[312818261,1706296239463,-484.11210037,0.00031999,7]
[312818262,1706296239472,-500.0,0.00031999,7]
[312818263,1706296239481,-500.0,0.00031999,7]
[312818264,1706296239490,-500.0,0.00031999,7]
[312818265,1706296239499,-500.0,0.00031999,7]
[312818266,1706296239508,-500.0,0.00031999,7]
[312818267,1706296239517,-500.0,0.00031999,7]
[312818268,1706296239527,-500.0,0.00031999,7]
[312818269,1706296239536,-500.0,0.00031999,7]
[312818270,1706296239545,-500.0,0.00031999,7]
[312818271,1706296239556,-500.0,0.00031999,7]
[312818272,1706296239565,-500.0,0.00031999,7]
[312818274,1706296239574,-500.0,0.00031999,7]
[312818275,1706296239584,-536.98058537,0.00031999,7]
[312818276,1706296239595,-500.0,0.00031999,7]
[312818277,1706296239606,-500.0,0.00031999,7]
[312818278,1706296239615,-500.0,0.00031999,7]
[312818279,1706296239627,-500.0,0.00031999,7]
[312818280,1706296239638,-500.0,0.00031999,7]
[312818281,1706296239646,-500.0,0.00031999,7]
[312818282,1706296239656,-500.0,0.00031999,7]
[312818283,1706296239665,-500.0,0.00031999,7]
[312818284,1706296239675,-500.0,0.00031999,7]
[312818285,1706296239684,-500.0,0.00031999,7]
[312818286,1706296239694,-500.0,0.00031999,7]
[312818287,1706296239705,-500.0,0.00031999,7]
[312818288,1706296239715,-500.0,0.00031999,7]
[312818289,1706296239725,-500.0,0.00031999,7]
[312818290,1706296239734,-500.0,0.00031999,7]
[312818291,1706296239745,-243.83497528,0.00031999,7]
[312818292,1706296239754,-500.0,0.00031999,7]
[312818293,1706296239763,-500.0,0.00031999,7]
[312818294,1706296239774,-500.0,0.00031999,7]
[312818295,1706296239786,-500.0,0.00031999,7]
[312818296,1706296239795,-500.0,0.00031999,7]
[312818297,1706296239805,-500.0,0.00031999,7]
[312818298,1706296239816,-500.0,0.00031999,7]
[312818299,1706296239827,-500.0,0.00031999,7]
[312818300,1706296239837,-500.0,0.00031999,7]
[312818301,1706296239845,-500.0,0.00031999,7]
[312818302,1706296239856,-500.0,0.00031999,7]
[312818303,1706296239865,-500.0,0.00031999,7]
[312818304,1706296239875,-54432.48118468,0.00032,10]
[312818305,1706296239886,-126336.27794888,0.00032,15]
[312818306,1706296239899,-155.04496304,0.00032,4]
[312818307,1706296239910,-103000.0,0.00032065,2]
[312818308,1706296239919,-620.00001002,0.00032089,2]
[312818309,1706296239930,-164.743919,0.0003242,2]
[312818310,1706296239939,-40486.2207764,0.00032877,2]
[312818311,1706296239950,-24321.26336278,0.00033,10]
[312818312,1706296239960,-5646.51481433,0.00033,2]
[312818313,1706296239970,-155.04496304,0.00033,2]
[312818314,1706296239981,-300.0,0.00033,4]
[312818315,1706296239990,-15871.3407666,0.00033065,2]
[312818316,1706296240004,-10202.84952288,0.00033065,2]
[312818317,1706296240023,-1626.93440702,0.00033065,2]
[312818339,1706296240401,202.01830787,0.00019013,2]
[312818605,1706296243205,-25710.5,0.00033065,2]
[312819095,1706296247204,74470.69855229,0.00019013,2]
[312819107,1706296247306,-309.72125088,0.00033063,4]
[312819109,1706296247315,-2364.01557213,0.00033063,4]
[312819111,1706296247324,-5035.53311713,0.00033064,4]
[312819113,1706296247333,-24588.3753035,0.00033065,2]
[312819115,1706296247342,-155.0,0.0003311,2]
[312819117,1706296247351,-155.04496304,0.00033487,2]
[312819119,1706296247360,-164.743919,0.00033562,2]
[312819121,1706296247369,-12770.92426487,0.00034,2]
[312819123,1706296247378,-200.0,0.00034359,15]
[312819125,1706296247387,-348.0,0.00034359,15]
[312819127,1706296247396,-269.20480479,0.0003448,2]
[312819129,1706296247405,-151.0362487,0.00034596,2]
[312819131,1706296247414,-250.55101224,0.00034596,2]
[312819133,1706296247423,-164.743919,0.00034703,2]
[312819135,1706296247432,-500.0,0.00034998,7]
[312819137,1706296247441,-500.0,0.00034998,7]
[312819139,1706296247450,-500.0,0.00034998,7]
[312819140,1706296247458,-500.0,0.00034998,7]
[312819142,1706296247467,-500.0,0.00034998,7]
[312819149,1706296247564,-459.22308749,0.00034998,7]
[312819150,1706296247573,-500.0,0.00034998,7]
[312819151,1706296247582,-500.0,0.00034998,10]
[312819152,1706296247591,-500.0,0.00034998,10]
[312819153,1706296247600,-500.0,0.00034998,10]
[312819155,1706296247609,-530.28812201,0.00034998,10]
[312819157,1706296247618,-500.0,0.00034998,10]
[312819159,1706296247627,-500.0,0.00034998,10]
[312819161,1706296247637,-500.0,0.00034998,10]
[312819163,1706296247646,-500.0,0.00034998,10]
[312819165,1706296247656,-500.0,0.00034998,10]
[312819167,1706296247665,-500.0,0.00034998,10]
[312819169,1706296247673,-500.0,0.00034998,10]
[312819171,1706296247683,-500.0,0.00034998,10]
[312819173,1706296247691,-500.0,0.00034998,10]
[312819175,1706296247700,-538.9158304,0.00034998,10]
[312819177,1706296247709,-500.0,0.00034998,10]
[312819179,1706296247720,-500.0,0.00034998,10]
[312819181,1706296247729,-500.0,0.00034998,10]
[312819183,1706296247738,-500.0,0.00034998,10]
[312819185,1706296247747,-500.0,0.00034998,10]
[312819187,1706296247757,-500.0,0.00034998,10]
[312819189,1706296247766,-500.0,0.00034998,10]
[312819191,1706296247777,-500.0,0.00034998,10]
[312819193,1706296247786,-500.0,0.00034998,10]
[312819195,1706296247795,-500.0,0.00034998,10]
[312819197,1706296247804,-500.0,0.00034998,10]
[312819199,1706296247813,-500.0,0.00034998,10]
[312819201,1706296247822,-500.0,0.00034998,10]
[312819203,1706296247831,-500.0,0.00034998,10]
[312819205,1706296247841,-500.0,0.00034998,10]
[312819207,1706296247850,-250.0,0.00034998,10]
[312819209,1706296247859,-500.0,0.00034998,10]
[312819211,1706296247868,-382.51732898,0.00034998,10]
[312819213,1706296247877,-523.11733519,0.00034998,10]
[312819215,1706296247887,-500.0,0.00034998,10]
[312819217,1706296247896,-500.0,0.00034998,10]
[312819219,1706296247908,-500.0,0.00034998,10]
[312819221,1706296247917,-500.0,0.00034998,10]
[312819223,1706296247926,-500.0,0.00034998,10]
[312819225,1706296247935,-500.0,0.00034998,10]
[312819227,1706296247945,-500.0,0.00034998,10]
[312819229,1706296247954,-500.0,0.00034998,10]
[312819231,1706296247964,-500.0,0.00034998,10]
[312819233,1706296247973,-500.0,0.00034998,10]
[312819235,1706296247984,-500.0,0.00034998,10]
[312819237,1706296247996,-500.0,0.00034998,10]
[312819239,1706296248006,-500.0,0.00034998,10]
[312819241,1706296248015,-500.0,0.00034998,10]
[312819243,1706296248026,-500.0,0.00034998,10]
[312819245,1706296248036,-500.0,0.00034998,10]
[312819247,1706296248045,-500.0,0.00034998,10]
[312819249,1706296248055,-500.0,0.00034998,10]
[312819251,1706296248066,-500.0,0.00034998,10]
[312819253,1706296248077,-154.95351395,0.00035,2]
[312819255,1706296248087,-45149.85324281,0.00035,10]
[312819257,1706296248098,-155.04496304,0.00035,4]
[312819259,1706296248108,-508.62808306,0.00035,2]
[312819261,1706296248118,-162.78630134,0.00035,6]
[312819263,1706296248128,-660.34126829,0.00035,7]
[312819266,1706296248139,-103000.0,0.00035065,2]
[312819267,1706296248150,-181.39491,0.000351,7]
[312819269,1706296248160,-302.0724974,0.00035177,4]
[312819272,1706296248170,-799.859225,0.00035456,2]
[312819273,1706296248181,-158.280104,0.00035616,2]
[312819276,1706296248192,-2998.586342,0.00035616,120]
[312819278,1706296248201,-604.1449948,0.00035769,7]
[312819279,1706296248211,-84115.50276332,0.00035794,2]
[312819282,1706296248227,-38830.49380608,0.00035794,2]
[312819478,1706296250194,938.03984623,0.00019013,2]
[312821344,1706296364475,-588.69915361,0.00024995,2]
[312821345,1706296364498,-2035.76851465,0.00024996,2]
[312821346,1706296364519,-36205.53233174,0.00024996,2]
[312821355,1706297078405,151.0226534,0.00029976,120]
[312821356,1706297265692,-4684.65,0.00022874,3]
[312821357,1706297265713,-561.94551525,0.00022883,2]
[312821358,1706297265734,-15621.40448475,0.00022884,2]
[312821400,1706297432309,-21696.9088825,0.00022327,2]
[312821401,1706297432318,-978.55548039,0.00022762,2]
[312821402,1706297432329,-243.28513868,0.00022762,2]
[312821403,1706297432338,-173.29617944,0.00022763,2]
[312821404,1706297432347,-3903.87,0.00022852,3]
[312821405,1706297432356,-3253.23,0.00022852,3]
[312821406,1706297432366,-2711.02,0.00022852,3]
[312821407,1706297432376,-561.02916396,0.00022883,2]
[312821408,1706297432385,-7965.10067001,0.00022884,2]
[312821409,1706297432394,-24900.0,0.00022885,2]
[312821410,1706297432403,-12976.517101,0.00023042,2]